fUSD/lending_fUSD_20241230
["ID","MTS","AMOUNT","RATE_DAILY","PERIOD"]
[347187372,1735554701189,-3869.8,0.00014794,2]
[347187373,1735554701199,-7283.26,0.00014794,2]
[347187374,1735554701209,-538.35,0.00014794,2]
[347187375,1735554701218,-2083.66,0.00014794,2]
[347187376,1735554701228,-1245.34,0.00014794,2]
[347187377,1735554701237,-1437.99,0.00014794,2]
[347187378,1735554701247,-1874.96,0.00014794,2]
[347187379,1735554701256,-4047.83,0.00014794,2]
[347187380,1735554701265,-2434.76,0.00014794,2]
[347187381,1735554701275,-3415.24,0.00014794,2]
[347187382,1735554701284,-500.0,0.00014794,2]
[347187383,1735554701294,-2910.83,0.00014794,2]
[347187384,1735554701303,-2358.95,0.00014794,2]
[347187385,1735554701312,-1380.68,0.00014794,2]
[347187386,1735554701322,-500.0,0.00014794,2]
[347187387,1735554701331,-3932.53,0.00014794,2]
[347187388,1735554701341,-887.39,0.00014794,2]
[347187389,1735554701351,-2451.98,0.00014794,2]
[347187390,1735554701360,-500.0,0.00014794,2]
[347187391,1735554701370,-1630.29,0.00014794,2]
[347187392,1735554701379,-2806.59,0.00014794,2]
[347187393,1735554701388,-500.0,0.00014794,2]
[347187394,1735554701397,-5043.23,0.00014794,2]
[347187395,1735554701407,-1907.3,0.00014794,2]
[347187396,1735554701416,-2710.39,0.00014794,2]
[347187397,1735554701425,-1803.4,0.00014794,2]
[347187398,1735554701434,-578.16,0.00014794,2]
[347187399,1735554701444,-697.826531,0.00014794,2]
[347187400,1735554701453,-500.0,0.00014794,2]
[347187401,1735554701463,-500.0,0.00014794,2]
[347187402,1735554701472,-15410.93,0.00014794,2]
[347187403,1735554701481,-3063.52,0.00014794,2]
[347187404,1735554701492,-778.96,0.00014794,2]
[347187405,1735554701501,-1315.44,0.00014794,2]
[347187406,1735554701510,-772.53,0.00014794,2]
[347187407,1735554701520,-500.0,0.00014794,2]
[347187408,1735554701529,-2023.47,0.00014794,2]
[347187409,1735554701697,-10853.58,0.00014794,2]
[347187410,1735554701706,-1018.75,0.00014794,2]
[347187411,1735554701716,-1539.27,0.00014794,2]
[347187412,1735554701725,-1421.06,0.00014794,2]
[347187413,1735554701735,-4226.36,0.00014794,2]
[347187414,1735554701744,-1661.62,0.00014794,2]
[347187415,1735554701754,-524.29267293,0.00014794,2]
[347187416,1735554701763,-1154.95,0.00014794,2]
[347187417,1735554701772,-500.0,0.00014794,2]
[347187418,1735554701781,-19002.09,0.00014794,2]
[347187419,1735554701791,-371.11,0.00014794,2]
[347187420,1735554701800,-13799.11,0.00014794,2]
[347187421,1735554701809,-1060.349808,0.00014794,2]
[347187422,1735554701819,-2447.22,0.00014794,2]
[347187423,1735554701829,-1853.19,0.00014794,2]
[347187424,1735554701838,-500.0,0.00014794,2]
[347187425,1735554701848,-4504.39,0.00014794,2]
[347187426,1735554701857,-1368.0,0.00014794,2]
[347187427,1735554701867,-579.82,0.00014794,2]
[347187428,1735554701876,-500.0,0.00014794,2]
[347187429,1735554701886,-7288.85,0.00014794,2]
[347187430,1735554701897,-574.32,0.00014794,2]
[347187431,1735554701907,-3768.96,0.00014794,2]
[347187432,1735554701917,-1624.8,0.00014794,2]
[347187433,1735554701927,-500.0,0.00014794,2]
[347187434,1735554701936,-3241.01,0.00014794,2]
[347187435,1735554701946,-1860.22,0.00014794,2]
[347187436,1735554701955,-4417.28,0.00014794,2]
[347187437,1735554701965,-1658.66,0.00014794,2]
[347187438,1735554701975,-500.0,0.00014794,2]
[347187439,1735554701984,-921.331711,0.00014794,2]
[347187440,1735554701994,-1376.93,0.00014794,2]
[347187441,1735554702004,-565.05,0.00014794,2]
[347187442,1735554702014,-511.39,0.00014794,2]
[347187443,1735554702024,-12335.02,0.00014794,2]
[347187444,1735554702033,-5391.31,0.00014794,2]
[347187445,1735554702043,-1492.07,0.00014794,2]
[347187446,1735554702052,-2462.72,0.00014794,2]
[347187447,1735554702061,-4206.8,0.00014794,2]
[347187448,1735554702070,-624.54,0.00014794,2]
[347187449,1735554702080,-1329.67,0.00014794,2]
[347187450,1735554702089,-500.0,0.00014794,2]
[347187451,1735554702099,-3747.13,0.00014794,2]
[347187452,1735554702111,-500.0,0.00014794,2]
[347187453,1735554702120,-2416.75,0.00014794,2]
[347187454,1735554702130,-500.0,0.00014794,2]
[347187455,1735554702140,-1532.57,0.00014794,2]
[347187456,1735554702149,-500.0,0.00014794,2]
[347187457,1735554702158,-1109.85,0.00014794,2]
[347187458,1735554702168,-667.51,0.00014794,2]
[347187459,1735554702177,-1884.81,0.00014794,2]
[347187460,1735554702186,-2393.86,0.00014794,2]
[347187461,1735554702196,-500.0,0.00014794,2]
[347187462,1735554702206,-768.73,0.00014794,2]
[347187463,1735554702215,-500.0,0.00014794,2]
[347187464,1735554702224,-500.0,0.00014794,2]
[347187465,1735554702233,-2701.5,0.00014794,2]
[347187466,1735554702244,-1145.33,0.00014794,2]
[347187467,1735554702253,-500.0,0.00014794,2]
[347187468,1735554702262,-500.0,0.00014794,2]
[347187469,1735554702271,-1842.45,0.00014794,2]
[347187470,1735554702280,-1022.94,0.00014794,2]
[347187471,1735554702289,-2458.37,0.00014794,2]
[347187472,1735554702299,-2768.22,0.00014794,2]
[347187473,1735554702308,-500.0,0.00014794,2]
[347187474,1735554702317,-602.240036,0.00014794,2]
[347187475,1735554702327,-1309.59,0.00014794,2]
[347187476,1735554702336,-2222.11,0.00014794,2]
[347187477,1735554702345,-500.0,0.00014794,2]
[347187478,1735554702354,-1184.42,0.00014794,2]
[347187479,1735554702363,-1975.49,0.00014794,2]
[347187480,1735554702372,-572.86035934,0.00014794,2]
[347187481,1735554702382,-2054.1,0.00014794,2]
[347187482,1735554702391,-1526.92,0.00014794,2]
[347187483,1735554702400,-500.0,0.00014794,2]
[347187484,1735554702409,-607.46,0.00014794,2]
[347187485,1735554702418,-2498.78,0.00014794,2]
[347187486,1735554702428,-500.0,0.00014794,2]
[347187487,1735554702437,-500.0,0.00014794,2]
[347187488,1735554702446,-633.07,0.00014794,2]
[347187489,1735554702455,-1514.9,0.00014794,2]
[347187490,1735554702465,-502.24,0.00014794,2]
[347187491,1735554702474,-798.38,0.00014794,2]
[347187492,1735554702483,-500.0,0.00014794,2]
[347187493,1735554702494,-500.0,0.00014812,2]
[347187494,1735554702503,-202.0,0.0001482,2]
[347187495,1735554702512,-500.0,0.00014846,2]
[347187496,1735554702521,-152.8043655,0.00014846,2]
[347187497,1735554702531,-500.0,0.00014846,2]
[347187498,1735554702540,-260.07378636,0.00014846,2]
[347187499,1735554702549,-500.0,0.00014846,2]
[347187500,1735554702558,-150.0,0.00014846,2]
[347187501,1735554702568,-266.65064153,0.00014846,2]
[347187502,1735554702577,-500.0,0.00014846,2]
[347187503,1735554702586,-500.0,0.00014846,2]
[347187504,1735554702595,-496212.57165868,0.00014868,2]
[347187505,1735554702604,-500.0,0.00014891,2]
[347187506,1735554702614,-1625.0,0.000149,5]
[347187507,1735554702623,-166.0,0.00014926,2]
[347187508,1735554702632,-166.0,0.00014926,2]
[347187509,1735554702640,-456.0,0.0001493,2]
[347187510,1735554702649,-314.0,0.0001493,2]
[347187511,1735554702659,-204.0,0.0001493,2]
[347187512,1735554702667,-500.0,0.00014949,2]
[347187513,1735554702676,-202.0,0.0001496,2]
[347187514,1735554702685,-1900.0,0.00014961,2]
[347187515,1735554702695,-819.0,0.00014961,2]
[347187516,1735554702705,-931.0,0.00014961,2]
[347187517,1735554702714,-3773.0,0.00014961,2]
[347187518,1735554702723,-1257.0,0.00014961,2]
[347187519,1735554702732,-3719.0,0.00014961,2]
[347187520,1735554702744,-536.0,0.00014961,2]
[347187521,1735554702754,-1102.0,0.00014961,2]
[347187522,1735554702763,-1267.589,0.00014961,2]
[347187523,1735554702774,-3891.0,0.00014961,2]
[347187524,1735554702783,-2013.0,0.00014961,2]
[347187525,1735554702793,-244.635,0.00014961,2]
[347187526,1735554702802,-1172.0,0.00014961,2]
[347187527,1735554702812,-5000.0,0.0001498,2]
[347187528,1735554702821,-666.0,0.00014989,2]
[347187529,1735554702832,-666.0,0.00014989,2]
[347187530,1735554702841,-828518.25773902,0.0001499,2]
[347187531,1735554702851,-5004.91998516,0.0001499,2]
[347187532,1735554702860,-194821.07608679,0.0001499,2]
[347187533,1735554702869,-151.0,0.0001499,2]
[347187534,1735554702879,-151.138772,0.0001499,2]
[347187535,1735554702888,-545.124391,0.0001499,2]
[347187536,1735554702897,-545.124391,0.0001499,2]
[347187537,1735554702906,-151.0,0.0001499,2]
[347187538,1735554702916,-151.0,0.0001499,2]
[347187539,1735554702925,-151.0,0.0001499,2]
[347187540,1735554702934,-151.0,0.0001499,2]
[347187541,1735554702943,-242.18369,0.0001499,2]
[347187542,1735554702952,-242.18369,0.0001499,2]
[347187543,1735554702962,-161.288185,0.0001499,2]
[347187544,1735554702971,-161.288185,0.0001499,2]
[347187545,1735554702980,-153.797188,0.0001499,2]
[347187546,1735554702991,-151.0,0.0001499,2]
[347187547,1735554703000,-153.797188,0.0001499,2]
[347187548,1735554703010,-151.0,0.0001499,2]
[347187549,1735554703019,-151.0,0.0001499,2]
[347187550,1735554703029,-151.0,0.0001499,2]
[347187551,1735554703039,-1756.555957,0.0001499,2]
[347187552,1735554703048,-1756.555957,0.0001499,2]
[347187553,1735554703058,-280.057575,0.0001499,2]
[347187554,1735554703067,-280.057575,0.0001499,2]
[347187555,1735554703076,-151.0,0.0001499,2]
[347187556,1735554703085,-192.456318,0.0001499,2]
[347187557,1735554703095,-176.215599,0.0001499,2]
[347187558,1735554703105,-192.456318,0.0001499,2]
[347187559,1735554703117,-176.215599,0.0001499,2]
[347187560,1735554703126,-196.954135,0.0001499,2]
[347187561,1735554703135,-196.954135,0.0001499,2]
[347187562,1735554703145,-151.0,0.0001499,2]
[347187563,1735554703154,-151.0,0.0001499,2]
[347187564,1735554703163,-151.0,0.0001499,2]
[347187565,1735554703173,-151.0,0.0001499,2]
[347187566,1735554703183,-295.682418,0.0001499,2]
[347187567,1735554703192,-295.682418,0.0001499,2]
[347187568,1735554703201,-151.0,0.0001499,2]
[347187569,1735554703210,-151.0,0.0001499,2]
[347187570,1735554703219,-151.0,0.0001499,2]
[347187571,1735554703229,-151.0,0.0001499,2]
[347187572,1735554703238,-1186.102693,0.0001499,2]
[347187573,1735554703247,-1186.102693,0.0001499,2]
[347187574,1735554703256,-151.0,0.0001499,2]
[347187575,1735554703266,-3223.526328,0.0001499,2]
[347187576,1735554703275,-3223.526328,0.0001499,2]
[347187577,1735554703284,-268.014045,0.0001499,2]
[347187578,1735554703293,-200.793025,0.0001499,2]
[347187579,1735554703302,-268.014045,0.0001499,2]
[347187580,1735554703312,-953646.98774151,0.0001499,2]
[347187581,1735554703322,-200.793025,0.0001499,2]
[347187582,1735554703331,-2330.87439,0.0001499,2]
[347187583,1735554703340,-2330.87439,0.0001499,2]
[347187584,1735554703350,-151.0,0.0001499,2]
[347187585,1735554703359,-151.0,0.0001499,2]
[347187586,1735554703368,-164.715487,0.0001499,2]
[347187587,1735554703377,-151.0,0.0001499,2]
[347187588,1735554703387,-151.0,0.0001499,2]
[347187589,1735554703396,-151.0,0.0001499,2]
[347187590,1735554703406,-151.0,0.0001499,2]
[347187591,1735554703415,-256.157101,0.0001499,2]
[347187592,1735554703424,-151.0,0.0001499,2]
[347187593,1735554703433,-151.0,0.0001499,2]
[347187594,1735554703443,-500.935484,0.0001499,2]
[347187595,1735554703452,-500.935484,0.0001499,2]
[347187596,1735554703462,-1190.535245,0.0001499,2]
[347187597,1735554703472,-459.135315,0.0001499,2]
[347187598,1735554703481,-1190.535245,0.0001499,2]
[347187599,1735554703493,-459.135315,0.0001499,2]
[347187600,1735554703502,-276.635621,0.0001499,2]
[347187601,1735554703512,-276.635621,0.0001499,2]
[347187602,1735554703524,-151.0,0.0001499,2]
[347187603,1735554703534,-151.0,0.0001499,2]
[347187604,1735554703543,-2000.0,0.00014999,2]
[347187605,1735554703552,-361.0,0.00015,2]
[347187606,1735554703562,-210438.7085428,0.00015,7]
[347187607,1735554703571,-10000.0,0.00015,2]
[347187608,1735554703580,-500.6,0.00015,2]
[347187609,1735554703589,-500.0,0.00015,2]
[347187610,1735554703598,-500.0,0.00015,2]
[347187611,1735554703608,-500.0,0.00015,2]
[347187612,1735554703617,-33096.82433303,0.00015,2]
[347187613,1735554703626,-14877.74916434,0.00015,2]
[347187614,1735554703636,-4169.55281001,0.00015,2]
[347187615,1735554703645,-34887.33083382,0.00015,2]
[347187616,1735554703655,-24201.0,0.00015,2]
[347187617,1735554703664,-8029.33368223,0.00015,2]
[347187618,1735554703673,-6595.0,0.00015,3]
[347187619,1735554703683,-150.0,0.00015008,2]
[347187620,1735554703692,-736.33899361,0.00015021,2]
[347187621,1735554703702,-383.88256019,0.00015021,2]
[347187622,1735554703711,-200.99,0.00015052,2]
[347187623,1735554703720,-5838.4070007,0.00015058,2]
[347187624,1735554703730,-13964.4224004,0.00015058,2]
[347187625,1735554703740,-666.0,0.00015067,2]
[347187626,1735554703750,-151.0,0.00015068,2]
[347187627,1735554703759,-273.371652,0.00015068,2]
[347187628,1735554703767,-273.371652,0.00015068,2]
[347187629,1735554703777,-1587.087385,0.00015068,2]
[347187630,1735554703786,-500.0,0.00015068,2]
[347187631,1735554703795,-500.0,0.00015068,2]
[347187632,1735554703804,-500.0,0.00015068,2]
[347187633,1735554703813,-500.0,0.00015068,2]
[347187634,1735554703823,-627.92,0.00015068,2]
[347187635,1735554703832,-500.0,0.00015068,2]
[347187636,1735554703841,-500.0,0.00015068,2]
[347187637,1735554703851,-485.7397976,0.00015068,2]
[347187638,1735554703860,-743.64,0.00015068,2]
[347187639,1735554703868,-549.69,0.00015068,2]
[347187640,1735554703877,-500.0,0.00015068,2]
[347187641,1735554703886,-500.0,0.00015068,2]
[347187642,1735554703895,-356.7432091,0.00015068,2]
[347187643,1735554703906,-1100.37,0.00015068,2]
[347187644,1735554703915,-648.92,0.00015068,2]
[347187645,1735554703924,-500.0,0.00015068,2]
[347187646,1735554703933,-500.0,0.00015068,2]
[347187647,1735554703942,-516.03,0.00015068,2]
[347187648,1735554703951,-521.87,0.00015068,2]
[347187649,1735554703960,-500.0,0.00015068,2]
[347187650,1735554703969,-609.91,0.00015068,2]
[347187651,1735554703978,-500.0,0.00015068,2]
[347187652,1735554703988,-500.0,0.00015068,2]
[347187653,1735554703997,-500.0,0.00015068,2]
[347187654,1735554704006,-500.0,0.00015068,2]
[347187655,1735554704016,-306.34479471,0.00015068,2]
[347187656,1735554704025,-500.0,0.00015068,2]
[347187657,1735554704034,-500.0,0.00015068,2]
[347187658,1735554704043,-759.77,0.00015068,2]
[347187659,1735554704051,-1148.51,0.00015068,2]
[347187660,1735554704060,-500.0,0.00015068,2]
[347187661,1735554704069,-500.0,0.00015068,2]
[347187662,1735554704078,-500.0,0.00015068,2]
[347187663,1735554704087,-500.0,0.00015068,2]
[347187664,1735554704097,-500.0,0.00015068,2]
[347187665,1735554704107,-500.0,0.00015068,2]
[347187666,1735554704118,-953.27,0.00015068,2]
[347187667,1735554704127,-503.96781794,0.00015068,2]
[347187668,1735554704136,-783.73,0.00015068,2]
[347187669,1735554704145,-688.92,0.00015068,2]
[347187670,1735554704154,-500.0,0.00015068,2]
[347187671,1735554704163,-500.0,0.00015068,2]
[347187672,1735554704173,-500.0,0.00015068,2]
[347187673,1735554704182,-838.01,0.00015068,2]
[347187674,1735554704191,-595.21,0.00015068,2]
[347187675,1735554704200,-1036.02,0.00015068,2]
[347187676,1735554704210,-500.0,0.00015068,2]
[347187677,1735554704219,-774.44,0.00015068,2]
[347187678,1735554704229,-549.14,0.00015068,2]
[347187679,1735554704238,-500.0,0.00015068,2]
[347187680,1735554704247,-500.0,0.00015068,2]
[347187681,1735554704256,-155.82,0.00015068,2]
[347187682,1735554704265,-883.34,0.00015068,2]
[347187683,1735554704275,-500.0,0.00015068,2]
[347187684,1735554704285,-500.0,0.00015068,2]
[347187685,1735554704293,-500.0,0.00015068,2]
[347187686,1735554704303,-500.0,0.00015068,2]
[347187687,1735554704312,-500.0,0.00015068,2]
[347187688,1735554704322,-515.37,0.00015068,2]
[347187689,1735554704332,-500.0,0.00015068,2]
[347187690,1735554704341,-500.0,0.00015068,2]
[347187691,1735554704351,-500.0,0.00015068,2]
[347187692,1735554704360,-500.0,0.00015068,2]
[347187693,1735554704370,-500.0,0.00015068,2]
[347187694,1735554704379,-1202.92,0.00015068,2]
[347187695,1735554704389,-500.0,0.00015068,2]
[347187696,1735554704398,-500.0,0.00015068,2]
[347187697,1735554704408,-500.0,0.00015068,2]
[347187698,1735554704418,-500.0,0.00015068,2]
[347187699,1735554704427,-510.83,0.00015068,2]
[347187700,1735554704437,-500.0,0.00015068,2]
[347187701,1735554704447,-500.0,0.00015068,2]
[347187702,1735554704457,-500.0,0.00015068,2]
[347187703,1735554704467,-500.0,0.00015068,2]
[347187704,1735554704476,-589.59998299,0.00015068,2]
[347187705,1735554704487,-500.0,0.00015068,2]
[347187706,1735554704497,-500.0,0.00015068,2]
[347187707,1735554704507,-500.0,0.00015068,2]
[347187708,1735554704664,-500.0,0.00015068,2]
[347187709,1735554704674,-996.69,0.00015068,2]
[347187710,1735554704684,-612.6,0.00015068,2]
[347187711,1735554704693,-500.0,0.00015068,2]
[347187712,1735554704703,-500.0,0.00015068,2]
[347187713,1735554704713,-500.0,0.00015068,2]
[347187714,1735554704722,-500.0,0.00015068,2]
[347187715,1735554704732,-500.0,0.00015068,2]
[347187716,1735554704741,-500.0,0.00015068,2]
[347187717,1735554704751,-982.97,0.00015068,2]
[347187718,1735554704761,-1360.64,0.00015068,2]
[347187719,1735554704771,-504.81,0.00015068,2]
[347187720,1735554704780,-974.37,0.00015068,2]
[347187721,1735554704789,-500.52,0.00015068,2]
[347187722,1735554704799,-907.54,0.00015068,2]
[347187723,1735554704808,-521.19,0.00015068,2]
[347187724,1735554704818,-500.0,0.00015068,2]
[347187725,1735554704827,-500.0,0.00015068,2]
[347187726,1735554704837,-500.0,0.00015068,2]
[347187727,1735554704846,-500.0,0.00015068,2]
[347187728,1735554704856,-1618.68,0.00015068,2]
[347187729,1735554704865,-500.0,0.00015068,2]
[347187730,1735554704875,-199.29503774,0.00015068,2]
[347187731,1735554704884,-682.33,0.00015068,2]
[347187732,1735554704894,-930.73,0.00015068,2]
[347187733,1735554704903,-500.0,0.00015068,2]
[347187734,1735554704913,-500.0,0.00015068,2]
[347187735,1735554704923,-2615.11,0.00015068,2]
[347187736,1735554704932,-1343.34,0.00015068,2]
[347187737,1735554704942,-500.0,0.00015068,2]
[347187738,1735554704951,-500.0,0.00015068,2]
[347187739,1735554704961,-1605.7,0.00015068,2]
[347187740,1735554704970,-500.0,0.00015068,2]
[347187741,1735554704979,-1347.41,0.00015068,2]
[347187742,1735554704989,-500.0,0.00015068,2]
[347187743,1735554704999,-740.98,0.00015068,2]
[347187744,1735554705009,-1010.13,0.00015068,2]
[347187745,1735554705019,-500.0,0.00015068,2]
[347187746,1735554705028,-500.0,0.00015068,2]
[347187747,1735554705037,-732.49,0.00015068,2]
[347187748,1735554705047,-500.0,0.00015068,2]
[347187749,1735554705056,-500.0,0.00015068,2]
[347187750,1735554705065,-500.0,0.00015068,2]
[347187751,1735554705074,-738.14,0.00015068,2]
[347187752,1735554705084,-500.0,0.00015068,2]
[347187753,1735554705093,-709.32,0.00015068,2]
[347187754,1735554705102,-1055.18,0.00015068,2]
[347187755,1735554705116,-1396.55,0.00015068,2]
[347187756,1735554705125,-2517.56,0.00015068,2]
[347187757,1735554705135,-4031.59,0.00015068,2]
[347187758,1735554705144,-619.65185276,0.00015068,2]
[347187759,1735554705154,-1255.43,0.00015068,2]
[347187760,1735554705163,-1693.33,0.00015068,2]
[347187761,1735554705172,-1279.84,0.00015068,2]
[347187762,1735554705182,-647.45,0.00015068,2]
[347187763,1735554705192,-577.79,0.00015068,2]
[347187764,1735554705201,-1741.51,0.00015068,2]
[347187765,1735554705210,-500.0,0.00015068,2]
[347187766,1735554705220,-942.55,0.00015068,2]
[347187767,1735554705230,-899.5,0.00015068,2]
[347187768,1735554705240,-500.0,0.00015068,2]
[347187769,1735554705249,-500.0,0.00015068,2]
[347187770,1735554705258,-500.0,0.00015068,2]
[347187771,1735554705267,-971.2,0.00015068,2]
[347187772,1735554705276,-852.09,0.00015068,2]
[347187773,1735554705285,-500.0,0.00015068,2]
[347187774,1735554705295,-1602.37,0.00015068,2]
[347187775,1735554705305,-500.0,0.00015068,2]
[347187776,1735554705314,-503.31723026,0.00015068,2]
[347187777,1735554705323,-526.98,0.00015068,2]
[347187778,1735554705332,-1168.41,0.00015068,2]
[347187779,1735554705342,-718.04,0.00015068,2]
[347187780,1735554705351,-520.46,0.00015068,2]
[347187781,1735554705360,-500.0,0.00015068,2]
[347187782,1735554705369,-500.0,0.00015068,2]
[347187783,1735554705377,-500.0,0.00015068,2]
[347187784,1735554705387,-500.0,0.00015068,2]
[347187785,1735554705396,-500.97,0.00015068,2]
[347187786,1735554705405,-1610.98,0.00015068,2]
[347187787,1735554705414,-522.32,0.00015068,2]
[347187788,1735554705423,-500.0,0.00015068,2]
[347187789,1735554705432,-829.69,0.00015068,2]
[347187790,1735554705441,-500.0,0.00015068,2]
[347187791,1735554705450,-500.0,0.00015068,2]
[347187792,1735554705459,-592.14,0.00015068,2]
[347187793,1735554705468,-743.74,0.00015068,2]
[347187794,1735554705478,-822.9,0.00015068,2]
[347187795,1735554705487,-500.0,0.00015068,2]
[347187796,1735554705496,-500.0,0.00015068,2]
[347187797,1735554705505,-500.0,0.00015068,2]
[347187798,1735554705514,-961.28,0.00015068,2]
[347187799,1735554705524,-500.0,0.00015068,2]
[347187800,1735554705533,-1300.51,0.00015068,2]
[347187801,1735554705542,-1306.13,0.00015068,2]
[347187802,1735554705551,-1211.16,0.00015068,2]
[347187803,1735554705560,-599.41172807,0.00015068,2]
[347187804,1735554705569,-564.7,0.00015068,2]
[347187805,1735554705579,-644.72,0.00015068,2]
[347187806,1735554705588,-507.58,0.00015068,2]
[347187807,1735554705598,-500.0,0.00015068,2]
[347187808,1735554705607,-1716.07,0.00015068,2]
[347187809,1735554705616,-500.0,0.00015068,2]
[347187810,1735554705626,-685.33,0.00015068,2]
[347187811,1735554705635,-500.0,0.00015068,2]
[347187812,1735554705645,-500.0,0.00015068,2]
[347187813,1735554705654,-1140.3,0.00015068,2]
[347187814,1735554705663,-1582.78,0.00015068,2]
[347187815,1735554705673,-500.0,0.00015068,2]
[347187816,1735554705682,-1499.25,0.00015068,2]
[347187817,1735554705692,-1527.24,0.00015068,2]
[347187818,1735554705702,-500.0,0.00015068,2]
[347187819,1735554705711,-1626.34,0.00015068,2]
[347187820,1735554705720,-500.0,0.00015068,2]
[347187821,1735554705730,-799.47,0.00015068,2]
[347187822,1735554705739,-775.88,0.00015068,2]
[347187823,1735554705748,-500.0,0.00015068,2]
[347187824,1735554705758,-276.16320245,0.00015068,2]
[347187825,1735554705767,-500.0,0.00015068,2]
[347187826,1735554705776,-936.82,0.00015068,2]
[347187827,1735554705785,-789.36,0.00015068,2]
[347187828,1735554705795,-1745.68,0.00015068,2]
[347187829,1735554705804,-747.79,0.00015068,2]
[347187830,1735554705813,-500.0,0.00015068,2]
[347187831,1735554705822,-500.0,0.00015068,2]
[347187832,1735554705831,-608.35,0.00015068,2]
[347187833,1735554705841,-500.0,0.00015068,2]
[347187834,1735554705850,-500.0,0.00015068,2]
[347187835,1735554705859,-500.0,0.00015068,2]
[347187836,1735554705868,-539.77,0.00015068,2]
[347187837,1735554705878,-500.0,0.00015068,2]
[347187838,1735554705887,-745.85,0.00015068,2]
[347187839,1735554705896,-782.89,0.00015068,2]
[347187840,1735554705905,-881.97,0.00015068,2]
[347187841,1735554705915,-514.09490642,0.00015068,2]
[347187842,1735554705924,-570.91,0.00015068,2]
[347187843,1735554705934,-500.0,0.00015068,2]
[347187844,1735554705948,-500.0,0.00015068,2]
[347187845,1735554705964,-822.0,0.00015068,2]
[347187846,1735554705977,-1033.39,0.00015068,2]
[347187847,1735554705992,-854.9,0.00015068,2]
[347187848,1735554706008,-703.8,0.00015068,2]
[347187849,1735554706024,-500.0,0.00015068,2]
[347187850,1735554706037,-843.64,0.00015068,2]
[347187851,1735554706051,-500.0,0.00015068,2]
[347187852,1735554706066,-500.0,0.00015068,2]
[347187853,1735554706082,-1660.3,0.00015068,2]
[347187854,1735554706097,-1063.44,0.00015068,2]
[347187855,1735554706115,-543.78,0.00015068,2]
[347187856,1735554706131,-702.65,0.00015068,2]
[347187857,1735554706147,-500.0,0.00015068,2]
[347187858,1735554706161,-652.4,0.00015068,2]
[347187859,1735554706176,-1187.1,0.00015068,2]
[347187860,1735554706189,-505.09,0.00015068,2]
[347187861,1735554706200,-829.36,0.00015068,2]
[347187862,1735554706213,-575.86,0.00015068,2]
[347187863,1735554706229,-500.0,0.00015068,2]
[347187864,1735554706241,-500.0,0.00015068,2]
[347187865,1735554706254,-233.90640859,0.00015068,2]
[347187866,1735554706268,-624.19,0.00015068,2]
[347187867,1735554706281,-906.93,0.00015068,2]
[347187868,1735554706295,-1156.63,0.00015068,2]
[347187869,1735554706308,-713.62,0.00015068,2]
[347187870,1735554706321,-614.22,0.00015068,2]
[347187871,1735554706333,-537.93,0.00015068,2]